fUST/lending_fUST_20250628
["ID","MTS","AMOUNT","RATE_DAILY","PERIOD"]
[368176348,1751050244612,-2117.93,0.00019726,2]
[368176349,1751050244622,-488.2,0.00019726,2]
[368176350,1751050244631,-680.42,0.00019726,2]
[368176351,1751050244641,-528.67,0.00019726,2]
[368176352,1751050244650,-679.2,0.00019726,2]
[368176353,1751050244660,-779.84,0.00019726,2]
[368176354,1751050244670,-1208.44,0.00019726,2]
[368176355,1751050244680,-219.51,0.00019726,2]
[368176356,1751050244689,-279.16606981,0.00019726,2]
[368176357,1751050244699,-766.56,0.00019726,2]
[368176358,1751050244708,-205.78,0.00019726,2]
[368176359,1751050244718,-958.22,0.00019726,2]
[368176360,1751050244728,-903.72,0.00019726,2]
[368176361,1751050244737,-460.0,0.00019726,2]
[368176362,1751050244747,-813.48,0.00019726,2]
[368176363,1751050244756,-598.54,0.00019726,2]
[368176364,1751050244765,-460.0,0.00019726,2]
[368176365,1751050244774,-460.0,0.00019726,2]
[368176366,1751050244783,-460.0,0.00019726,2]
[368176367,1751050244793,-460.0,0.00019726,2]
[368176368,1751050244803,-460.0,0.00019726,2]
[368176369,1751050244814,-460.0,0.00019726,2]
[368176370,1751050244824,-2547.18,0.00019726,2]
[368176371,1751050244834,-2140.85,0.00019726,2]
[368176372,1751050244845,-460.0,0.00019726,2]
[368176373,1751050244855,-227.36,0.00019726,2]
[368176374,1751050244865,-913.39,0.00019726,2]
[368176375,1751050244875,-460.0,0.00019726,2]
[368176376,1751050244884,-460.0,0.00019726,2]
[368176377,1751050244893,-460.0,0.00019726,2]
[368176378,1751050244903,-460.0,0.00019726,2]
[368176379,1751050244913,-460.0,0.00019726,2]
[368176380,1751050244923,-460.0,0.00019726,2]
[368176381,1751050244934,-460.0,0.00019726,2]
[368176382,1751050244944,-460.0,0.00019726,2]
[368176383,1751050244954,-4096.8,0.00019726,2]
[368176384,1751050244965,-536.44,0.00019726,2]
[368176385,1751050244974,-811.54,0.00019726,2]
[368176386,1751050244983,-533.95,0.00019726,2]
[368176387,1751050244993,-6692.7,0.00019726,2]
[368176388,1751050245002,-460.0,0.00019726,2]
[368176389,1751050245013,-460.0,0.00019726,2]
[368176390,1751050245023,-1124.09,0.00019726,2]
[368176391,1751050245032,-460.0,0.00019726,2]
[368176392,1751050245041,-524.12883614,0.00019726,2]
[368176393,1751050245050,-460.0,0.00019726,2]
[368176394,1751050245063,-583.49,0.00019726,2]
[368176395,1751050245072,-460.0,0.00019726,2]
[368176396,1751050245082,-177.30088361,0.00019726,2]
[368176397,1751050245091,-460.0,0.00019726,2]
[368176398,1751050245102,-460.0,0.00019726,2]
[368176399,1751050245111,-1404.72,0.00019726,2]
[368176400,1751050245120,-460.0,0.00019726,2]
[368176401,1751050245130,-1817.63,0.00019726,2]
[368176402,1751050245141,-824.96,0.00019726,2]
[368176403,1751050245151,-460.0,0.00019726,2]
[368176404,1751050245161,-588.73,0.00019726,2]
[368176405,1751050245170,-436.69554052,0.00019726,2]
[368176406,1751050245179,-460.0,0.00019726,2]
[368176407,1751050245188,-3832.44,0.00019726,2]
[368176408,1751050245198,-4872.39,0.00019726,2]
[368176409,1751050245207,-460.0,0.00019726,2]
[368176410,1751050245216,-151.0,0.00019726,2]
[368176411,1751050245226,-151.0,0.00019726,2]
[368176412,1751050245235,-151.0,0.00019726,2]
[368176413,1751050245244,-500.0,0.00019743,2]
[368176414,1751050245254,-500.0,0.00019743,2]
[368176415,1751050245263,-500.0,0.00019743,2]
[368176416,1751050245273,-619.19986153,0.00019743,2]
[368176417,1751050245282,-473.11563997,0.00019743,2]
[368176418,1751050245291,-500.0,0.00019743,2]
[368176419,1751050245300,-151.0,0.00019754,2]
[368176420,1751050245311,-151.0,0.00019754,2]
[368176421,1751050245321,-151.0,0.00019754,2]
[368176422,1751050245330,-500.0,0.00019763,2]
[368176423,1751050245339,-500.0,0.00019763,2]
[368176424,1751050245349,-500.0,0.00019763,2]
[368176425,1751050245358,-500.0,0.00019763,2]
[368176426,1751050245368,-500.0,0.00019766,2]
[368176427,1751050245378,-256.88752789,0.00019766,2]
[368176428,1751050245388,-428.52617537,0.00019766,2]
[368176429,1751050245397,-500.0,0.00019766,2]
[368176430,1751050245407,-500.0,0.00019766,2]
[368176431,1751050245417,-500.0,0.00019777,2]
[368176432,1751050245426,-500.0,0.00019777,2]
[368176433,1751050245436,-500.0,0.00019777,2]
[368176434,1751050245446,-500.0,0.00019777,2]
[368176435,1751050245455,-500.0,0.00019777,2]
[368176436,1751050245465,-377.86166272,0.00019777,2]
[368176437,1751050245475,-500.0,0.00019777,2]
[368176438,1751050245484,-500.0,0.00019777,2]
[368176439,1751050245494,-500.0,0.00019781,2]
[368176440,1751050245503,-500.0,0.00019781,2]
[368176441,1751050245513,-500.0,0.00019781,2]
[368176442,1751050245522,-500.0,0.00019781,2]
[368176443,1751050245532,-500.0,0.00019781,2]
[368176444,1751050245540,-500.12746129,0.00019781,2]
[368176445,1751050245551,-151.0,0.00019781,2]
[368176446,1751050245562,-151.0,0.00019781,2]
[368176447,1751050245571,-151.0,0.00019781,2]
[368176448,1751050245580,-203.72036983,0.00019782,2]
[368176449,1751050245590,-273.0,0.00019785,2]
[368176450,1751050245600,-500.0,0.000198,2]
[368176451,1751050245609,-500.0,0.00019808,2]
[368176452,1751050245619,-500.0,0.00019808,2]
[368176453,1751050245628,-500.0,0.00019808,2]
[368176454,1751050245638,-245.0,0.00019809,2]
[368176455,1751050245648,-245.0,0.00019809,2]
[368176456,1751050245658,-221.08082616,0.00019809,2]
[368176457,1751050245668,-500.0,0.00019814,2]
[368176458,1751050245678,-500.0,0.00019814,2]
[368176459,1751050245688,-500.0,0.00019814,2]
[368176460,1751050245699,-500.0,0.00019814,2]
[368176461,1751050245709,-500.0,0.00019814,2]
[368176462,1751050245719,-550.35644472,0.00019826,2]
[368176463,1751050245728,-500.0,0.00019826,2]
[368176464,1751050245738,-500.0,0.00019826,2]
[368176465,1751050245748,-500.8586686,0.00019826,2]
[368176466,1751050245757,-500.0,0.00019826,2]
[368176467,1751050245767,-500.62202306,0.00019826,2]
[368176468,1751050245777,-500.0,0.00019826,2]
[368176470,1751050245786,-500.0,0.00019826,2]
[368176472,1751050245796,-500.0,0.00019833,2]
[368176474,1751050245806,-160.0,0.00019956,2]
[368176475,1751050245815,-847.04181546,0.00019956,2]
[368176476,1751050245825,-230.26210603,0.00019956,2]
[368176477,1751050245837,-160.0,0.00019956,2]
[368176479,1751050245847,-160.0,0.00019956,2]
[368176480,1751050245856,-213.75309343,0.00019956,2]
[368176482,1751050245866,-836.98798914,0.00019956,2]
[368176483,1751050245875,-160.0,0.00019956,2]
[368176484,1751050245885,-160.0,0.00019956,2]
[368176485,1751050245894,-214.91804724,0.00019956,2]
[368176486,1751050245904,-160.0,0.00019962,2]
[368176487,1751050245913,-160.0,0.00019962,2]
[368176488,1751050245923,-12562.41216491,0.00019962,2]
[368176489,1751050245932,-160.0,0.00019962,2]
[368176490,1751050245942,-160.0,0.00019962,2]
[368176491,1751050245951,-500.0,0.00019987,2]
[368176492,1751050245960,-7136.4157538,0.0001999,2]
[368176493,1751050245970,-460.0,0.0002,2]
[368176494,1751050245980,-460.0,0.0002,2]
[368176495,1751050245989,-460.0,0.0002,2]
[368176496,1751050245999,-716.03,0.0002,2]
[368176497,1751050246008,-670.01,0.0002,2]
[368176498,1751050246019,-460.0,0.0002,2]
[368176499,1751050246028,-460.0,0.0002,2]
[368176500,1751050246039,-1088.45,0.0002,2]
[368176501,1751050246048,-460.0,0.0002,2]
[368176502,1751050246059,-460.0,0.0002,2]
[368176503,1751050246070,-460.0,0.0002,2]
[368176504,1751050246079,-460.0,0.0002,2]
[368176505,1751050246088,-460.0,0.0002,2]
[368176506,1751050246097,-460.0,0.0002,2]
[368176507,1751050246107,-460.0,0.0002,2]
[368176508,1751050246116,-460.0,0.0002,2]
[368176509,1751050246125,-460.0,0.0002,2]
[368176510,1751050246135,-460.0,0.0002,2]
[368176511,1751050246146,-460.0,0.0002,2]
[368176512,1751050246156,-460.0,0.0002,2]
[368176513,1751050246165,-168.11,0.0002,2]
[368176514,1751050246175,-460.0,0.0002,2]
[368176515,1751050246184,-460.0,0.0002,2]
[368176516,1751050246193,-461.02954908,0.0002,2]
[368176517,1751050246203,-460.0,0.0002,2]
[368176519,1751050246212,-460.0,0.0002,2]
[368176521,1751050246222,-460.0,0.0002,2]
[368176523,1751050246231,-778.94,0.0002,2]
[368176524,1751050246240,-460.0,0.0002,2]
[368176525,1751050246249,-460.0,0.0002,2]
[368176526,1751050246259,-460.0,0.0002,2]
[368176527,1751050246267,-460.0,0.0002,2]
[368176528,1751050246276,-460.0,0.0002,2]
[368176529,1751050246285,-460.0,0.0002,2]
[368176530,1751050246295,-460.0,0.0002,2]
[368176531,1751050246304,-710.39,0.0002,2]
[368176532,1751050246315,-460.0,0.0002,2]
[368176533,1751050246324,-460.0,0.0002,2]
[368176534,1751050246334,-602.83,0.0002,2]
[368176535,1751050246343,-460.0,0.0002,2]
[368176536,1751050246352,-501.51,0.0002,2]
[368176537,1751050246362,-460.0,0.0002,2]
[368176538,1751050246460,-601.8,0.0002,2]
[368176539,1751050246470,-460.0,0.0002,2]
[368176540,1751050246480,-460.0,0.0002,2]
[368176541,1751050246489,-460.0,0.0002,2]
[368176542,1751050246499,-460.0,0.0002,2]
[368176543,1751050246509,-481.37,0.0002,2]
[368176544,1751050246520,-460.0,0.0002,2]
[368176545,1751050246530,-460.0,0.0002,2]
[368176547,1751050246539,-460.0,0.0002,2]
[368176549,1751050246548,-302.69057648,0.0002,2]
[368176550,1751050246559,-460.0,0.0002,2]
[368176551,1751050246568,-460.0,0.0002,2]
[368176552,1751050246578,-824.3,0.0002,2]
[368176553,1751050246588,-460.0,0.0002,2]
[368176554,1751050246597,-460.0,0.0002,2]
[368176555,1751050246607,-460.0,0.0002,2]
[368176556,1751050246617,-460.0,0.0002,2]
[368176557,1751050246638,-460.0,0.0002,2]
[368176558,1751050246659,-460.0,0.0002,2]
[368176559,1751050246668,-460.0,0.0002,2]
[368176560,1751050246678,-460.0,0.0002,2]
[368176561,1751050246688,-460.0,0.0002,2]
[368176562,1751050246698,-471.98705521,0.0002,2]
[368176563,1751050246708,-460.0,0.0002,2]
[368176564,1751050246718,-460.0,0.0002,2]
[368176565,1751050246729,-460.0,0.0002,2]
[368176566,1751050246739,-740.46,0.0002,2]
[368176567,1751050246750,-488.76,0.0002,2]
[368176568,1751050246759,-460.0,0.0002,2]
[368176569,1751050246769,-460.0,0.0002,2]
[368176570,1751050246779,-436.40730184,0.0002,2]
[368176571,1751050246789,-724.33,0.0002,2]
[368176572,1751050246798,-500.0,0.0002,2]
[368176573,1751050246809,-460.0,0.0002,2]
[368176574,1751050246819,-4024.15,0.0002,2]
[368176575,1751050246829,-464.58,0.0002,2]
[368176576,1751050246839,-4326.72,0.0002,2]
[368176577,1751050246849,-1028.81,0.0002,2]
[368176578,1751050246858,-460.0,0.0002,2]
[368176579,1751050246868,-573.14,0.0002,2]
[368176580,1751050246879,-466.22461809,0.0002,2]
[368176581,1751050246889,-460.0,0.0002,2]
[368176582,1751050246898,-460.0,0.0002,2]
[368176583,1751050246907,-494.06,0.0002,2]
[368176584,1751050246917,-460.0,0.0002,2]
[368176585,1751050246926,-4640.97,0.0002,2]
[368176586,1751050246935,-5598.36,0.0002,2]
[368176587,1751050246945,-460.0,0.0002,2]
[368176588,1751050246954,-460.0,0.0002,2]
[368176589,1751050246964,-805.6,0.0002,2]
[368176590,1751050246974,-1693.4,0.0002,2]
[368176591,1751050246983,-2041.2,0.0002,2]
[368176592,1751050246993,-460.0,0.0002,2]
[368176593,1751050247002,-460.0,0.0002,2]
[368176594,1751050247011,-460.0,0.0002,2]
[368176595,1751050247021,-460.0,0.0002,2]
[368176596,1751050247032,-460.0,0.0002,2]
[368176597,1751050247042,-460.0,0.0002,2]
[368176598,1751050247052,-460.0,0.0002,2]
[368176599,1751050247066,-460.0,0.0002,2]
[368176600,1751050247076,-2276.45,0.0002,2]
[368176601,1751050247086,-151.0,0.0002,2]
[368176602,1751050247096,-632.3,0.0002,2]
[368176603,1751050247106,-563.86,0.0002,2]
[368176604,1751050247118,-460.0,0.0002,2]
[368176605,1751050247127,-460.0,0.0002,2]
[368176606,1751050247137,-829.09,0.0002,2]
[368176607,1751050247149,-1742.49,0.0002,2]
[368176608,1751050247159,-157.10844,0.0002,2]
[368176609,1751050247168,-460.0,0.0002,2]
[368176610,1751050247177,-460.0,0.0002,2]
[368176611,1751050247186,-460.0,0.0002,2]
[368176612,1751050247195,-460.0,0.0002,2]
[368176613,1751050247204,-807.33,0.0002,2]
[368176614,1751050247213,-1348.64,0.0002,2]
[368176615,1751050247223,-151.0,0.0002,2]
[368176616,1751050247233,-460.0,0.0002,2]
[368176617,1751050247243,-1350.56,0.0002,2]
[368176618,1751050247254,-460.0,0.0002,2]
[368176619,1751050247264,-460.0,0.0002,2]
[368176620,1751050247274,-460.0,0.0002,2]
[368176621,1751050247283,-460.0,0.0002,2]
[368176622,1751050247293,-460.0,0.0002,2]
[368176623,1751050247303,-2117.93,0.0002,2]
[368176624,1751050247319,-488.2,0.0002,2]
[368176625,1751050247328,-680.42,0.0002,2]
[368176626,1751050247338,-528.67,0.0002,2]
[368176627,1751050247348,-679.2,0.0002,2]
[368176628,1751050247358,-779.84,0.0002,2]
[368176629,1751050247367,-1208.44,0.0002,2]
[368176630,1751050247376,-151.0,0.0002,2]
[368176631,1751050247387,-766.56,0.0002,2]
[368176632,1751050247396,-958.22,0.0002,2]
[368176633,1751050247406,-903.72,0.0002,2]
[368176634,1751050247416,-460.0,0.0002,2]
[368176635,1751050247426,-813.48,0.0002,2]
[368176636,1751050247436,-598.54,0.0002,2]
[368176637,1751050247445,-460.0,0.0002,2]
[368176638,1751050247455,-246.156156,0.0002,2]
[368176639,1751050247464,-460.0,0.0002,2]
[368176640,1751050247473,-460.0,0.0002,2]
[368176641,1751050247483,-246.156156,0.0002,2]
[368176642,1751050247491,-151.0,0.0002,2]
[368176643,1751050247501,-460.0,0.0002,2]
[368176644,1751050247510,-2547.18,0.0002,2]
[368176645,1751050247520,-2140.85,0.0002,2]
[368176646,1751050247529,-460.0,0.0002,2]
[368176647,1751050247539,-151.0,0.0002,2]
[368176648,1751050247548,-913.39,0.0002,2]
[368176649,1751050247559,-460.0,0.0002,2]
[368176650,1751050247568,-460.0,0.0002,2]
[368176651,1751050247578,-460.0,0.0002,2]
[368176652,1751050247588,-180.53718336,0.0002,2]
[368176653,1751050247597,-460.0,0.0002,2]
[368176654,1751050247606,-460.0,0.0002,2]
[368176655,1751050247615,-460.0,0.0002,2]
[368176656,1751050247624,-460.0,0.0002,2]
[368176657,1751050247633,-4096.8,0.0002,2]
[368176658,1751050247643,-536.44,0.0002,2]
[368176659,1751050247654,-811.54,0.0002,2]
[368176660,1751050247663,-533.95,0.0002,2]
[368176661,1751050247673,-6692.7,0.0002,2]
[368176662,1751050247684,-460.0,0.0002,2]
[368176663,1751050247693,-1124.09,0.0002,2]
[368176664,1751050247704,-467.63551549,0.0002,2]
[368176665,1751050247714,-583.49,0.0002,2]
[368176666,1751050247723,-460.0,0.0002,2]
[368176667,1751050247732,-181.974358,0.0002,2]
[368176668,1751050247742,-460.0,0.0002,2]
[368176669,1751050247751,-460.0,0.0002,2]
[368176670,1751050247760,-1404.72,0.0002,2]
[368176671,1751050247769,-181.974358,0.0002,2]
[368176672,1751050247778,-460.0,0.0002,2]
[368176673,1751050247787,-1817.63,0.0002,2]
[368176674,1751050247796,-824.96,0.0002,2]
[368176675,1751050247806,-460.0,0.0002,2]
[368176676,1751050247816,-588.73,0.0002,2]
[368176677,1751050247826,-460.0,0.0002,2]
[368176678,1751050247836,-3832.44,0.0002,2]
[368176679,1751050247846,-4872.39,0.0002,2]
[368176680,1751050247856,-2265.16640447,0.00020037,2]
[368176681,1751050247866,-695.24141852,0.00020058,2]
[368176682,1751050247876,-730.0,0.00020179,2]
[368176683,1751050247886,-223.546524,0.00020187,2]
[368176684,1751050247895,-406.50395735,0.00020273,2]
[368176685,1751050247905,-460.0,0.00020273,2]
[368176686,1751050247914,-253.17702965,0.00020273,2]
[368176687,1751050247924,-716.03,0.00020273,2]
[368176688,1751050247933,-670.01,0.00020273,2]
[368176689,1751050247942,-460.0,0.00020273,2]
[368176690,1751050247951,-460.0,0.00020273,2]
[368176691,1751050247960,-1088.45,0.00020273,2]
[368176692,1751050247970,-460.0,0.00020273,2]
[368176693,1751050247979,-487.79,0.00020273,2]
[368176694,1751050247988,-460.0,0.00020273,2]
[368176695,1751050247998,-460.0,0.00020273,2]
[368176696,1751050248007,-460.0,0.00020273,2]
[368176697,1751050248017,-460.0,0.00020273,2]
[368176698,1751050248026,-460.0,0.00020273,2]
[368176699,1751050248036,-581.13,0.00020273,2]
[368176700,1751050248045,-460.0,0.00020273,2]
[368176701,1751050248055,-460.0,0.00020273,2]
[368176702,1751050248069,-467.31043884,0.00020273,2]
[368176703,1751050248079,-474.51598017,0.00020273,2]
[368176704,1751050248089,-460.0,0.00020273,2]
[368176705,1751050248098,-460.0,0.00020273,2]
[368176706,1751050248108,-460.0,0.00020273,2]
[368176707,1751050248118,-460.0,0.00020273,2]
[368176708,1751050248127,-778.94,0.00020273,2]
[368176709,1751050248137,-460.0,0.00020273,2]
[368176710,1751050248147,-460.0,0.00020273,2]
[368176711,1751050248156,-460.0,0.00020273,2]
[368176712,1751050248166,-249.14,0.00020273,2]
[368176713,1751050248176,-460.0,0.00020273,2]
[368176714,1751050248186,-710.39,0.00020273,2]
[368176715,1751050248196,-460.0,0.00020273,2]
[368176716,1751050248206,-460.0,0.00020273,2]
[368176717,1751050248216,-602.83,0.00020273,2]
[368176718,1751050248225,-472.45672854,0.00020273,2]
[368176719,1751050248236,-230.01,0.00020273,2]
[368176720,1751050248246,-460.0,0.00020273,2]
[368176721,1751050248255,-460.0,0.00020273,2]
[368176722,1751050248265,-460.0,0.00020273,2]
[368176723,1751050248274,-460.0,0.00020273,2]
[368176724,1751050248284,-481.37,0.00020273,2]
[368176725,1751050248379,-460.0,0.00020273,2]
[368176726,1751050248389,-460.0,0.00020273,2]
[368176727,1751050248399,-460.0,0.00020273,2]
[368176728,1751050248409,-460.0,0.00020273,2]
[368176729,1751050248418,-247.3,0.00020273,2]
[368176730,1751050248427,-824.3,0.00020273,2]
[368176731,1751050248437,-460.0,0.00020273,2]
[368176732,1751050248446,-465.89228058,0.00020273,2]
[368176733,1751050248456,-321.22,0.00020273,2]
[368176734,1751050248465,-460.0,0.00020273,2]
[368176735,1751050248475,-460.0,0.00020273,2]
[368176736,1751050248485,-298.57962969,0.00020273,2]
[368176737,1751050248494,-460.0,0.00020273,2]
[368176738,1751050248504,-460.0,0.00020273,2]
[368176739,1751050248514,-460.0,0.00020273,2]
[368176740,1751050248524,-460.0,0.00020273,2]
[368176741,1751050248534,-151.0,0.00020273,2]
[368176742,1751050248544,-460.0,0.00020273,2]
[368176743,1751050248553,-740.46,0.00020273,2]
[368176744,1751050248564,-391.16,0.00020273,2]
[368176745,1751050248574,-294.74,0.00020273,2]
[368176746,1751050248583,-724.33,0.00020273,2]
[368176747,1751050248594,-500.0,0.00020273,2]
[368176748,1751050248604,-460.0,0.00020273,2]
[368176749,1751050248614,-4024.15,0.00020273,2]
[368176750,1751050248624,-464.58,0.00020273,2]
[368176751,1751050248634,-4326.72,0.00020273,2]
[368176752,1751050248644,-1028.81,0.00020273,2]
[368176753,1751050248654,-151.0,0.00020273,2]
[368176754,1751050248664,-460.0,0.00020273,2]
[368176755,1751050248675,-573.14,0.00020273,2]
[368176756,1751050248686,-460.0,0.00020273,2]
[368176757,1751050248704,-460.0,0.00020273,2]
[368176758,1751050248714,-494.06,0.00020273,2]
[368176759,1751050248723,-344.97821184,0.00020273,2]
[368176760,1751050248733,-4640.97,0.00020273,2]
[368176761,1751050248743,-384.158523,0.00020273,2]
[368176762,1751050248752,-384.158523,0.00020273,2]
[368176763,1751050248762,-5598.36,0.00020273,2]
[368176764,1751050248772,-460.0,0.00020273,2]
[368176765,1751050248781,-805.6,0.00020273,2]
[368176766,1751050248791,-1693.4,0.00020273,2]
[368176767,1751050248801,-2041.2,0.00020273,2]
[368176768,1751050248811,-460.0,0.00020273,2]
[368176769,1751050248821,-460.0,0.00020273,2]
[368176770,1751050248831,-460.0,0.00020273,2]
[368176771,1751050248841,-290.24893735,0.00020273,2]
[368176772,1751050248850,-460.0,0.00020273,2]
[368176773,1751050248860,-319.3,0.00020273,2]
[368176774,1751050248870,-460.0,0.00020273,2]
[368176775,1751050248880,-2276.45,0.00020273,2]
[368176776,1751050248889,-632.3,0.00020273,2]
[368176777,1751050248899,-563.86,0.00020273,2]
[368176778,1751050248909,-460.0,0.00020273,2]
[368176779,1751050248918,-460.0,0.00020273,2]
[368176780,1751050248927,-829.09,0.00020273,2]
[368176781,1751050248936,-1742.49,0.00020273,2]
[368176782,1751050248946,-460.0,0.00020273,2]
[368176783,1751050248955,-460.0,0.00020273,2]
[368176784,1751050248964,-460.0,0.00020273,2]
[368176785,1751050248975,-460.0,0.00020273,2]
[368176786,1751050248985,-807.33,0.00020273,2]
[368176787,1751050248994,-1348.64,0.00020273,2]
[368176788,1751050249003,-460.0,0.00020273,2]
[368176789,1751050249013,-1350.56,0.00020273,2]
[368176790,1751050249023,-460.0,0.00020273,2]
[368176791,1751050249033,-460.0,0.00020273,2]
[368176792,1751050249042,-151.0,0.00020273,2]
[368176793,1751050249052,-460.0,0.00020273,2]
[368176794,1751050249063,-460.0,0.00020273,2]
[368176795,1751050249075,-460.0,0.00020273,2]
[368176796,1751050249084,-2117.93,0.00020273,2]
[368176797,1751050249093,-488.2,0.00020273,2]
[368176798,1751050249102,-680.42,0.00020273,2]
[368176799,1751050249112,-528.67,0.00020273,2]
[368176800,1751050249121,-679.2,0.00020273,2]
[368176801,1751050249131,-779.84,0.00020273,2]
[368176802,1751050249140,-1208.44,0.00020273,2]
[368176803,1751050249150,-766.56,0.00020273,2]
[368176804,1751050249160,-958.22,0.00020273,2]
[368176805,1751050249170,-903.72,0.00020273,2]
[368176806,1751050249179,-460.0,0.00020273,2]
[368176807,1751050249189,-813.48,0.00020273,2]
[368176808,1751050249199,-598.54,0.00020273,2]
[368176809,1751050249209,-460.0,0.00020273,2]
[368176810,1751050249218,-460.0,0.00020273,2]
[368176811,1751050249228,-460.0,0.00020273,2]
[368176812,1751050249237,-2547.18,0.00020273,2]
[368176813,1751050249247,-2140.85,0.00020273,2]
[368176814,1751050249256,-460.0,0.00020273,2]
[368176815,1751050249266,-913.39,0.00020273,2]
[368176816,1751050249275,-469.16716367,0.00020273,2]
[368176817,1751050249284,-460.0,0.00020273,2]
[368176818,1751050249294,-460.0,0.00020273,2]
[368176819,1751050249303,-255.53,0.00020273,2]
[368176820,1751050249314,-460.0,0.00020273,2]
[368176821,1751050249323,-460.0,0.00020273,2]
[368176822,1751050249332,-460.0,0.00020273,2]
[368176823,1751050249342,-4096.8,0.00020273,2]
[368176824,1751050249352,-536.44,0.00020273,2]
[368176825,1751050249361,-811.54,0.00020273,2]
[368176826,1751050249371,-533.95,0.00020273,2]
[368176827,1751050249381,-6692.7,0.00020273,2]
[368176828,1751050249391,-460.0,0.00020273,2]
[368176829,1751050249402,-1124.09,0.00020273,2]
[368176830,1751050249411,-583.49,0.00020273,2]
[368176831,1751050249421,-460.0,0.00020273,2]
[368176832,1751050249430,-460.0,0.00020273,2]
[368176833,1751050249440,-460.0,0.00020273,2]
[368176834,1751050249449,-207.994089,0.00020273,2]
[368176835,1751050249458,-1404.72,0.00020273,2]
[368176836,1751050249468,-460.0,0.00020273,2]
[368176837,1751050249478,-207.994089,0.00020273,2]
[368176838,1751050249487,-1817.63,0.00020273,2]
[368176839,1751050249498,-824.96,0.00020273,2]
[368176840,1751050249507,-460.0,0.00020273,2]
[368176841,1751050249516,-588.73,0.00020273,2]
[368176842,1751050249526,-460.0,0.00020273,2]
[368176843,1751050249535,-3832.44,0.00020273,2]
[368176844,1751050249544,-4872.39,0.00020273,2]
[368176845,1751050249554,-1002.89649884,0.00020291,2]
[368176846,1751050249564,-1063.40234166,0.00020291,2]
[368176847,1751050249574,-204.50798009,0.00020291,2]
[368176848,1751050249583,-1000.0,0.00020291,2]
[368176849,1751050249593,-151.0,0.000203,3]
[368176850,1751050249602,-500.0,0.00020311,2]
[368176851,1751050249611,-1000.0,0.00020311,2]
[368176852,1751050249620,-1000.0,0.00020311,2]
[368176853,1751050249629,-1000.0,0.00020311,2]
[368176854,1751050249638,-1000.0,0.00020314,2]
[368176855,1751050249648,-1000.0,0.00020314,2]
[368176856,1751050249657,-1000.0,0.00020314,2]
[368176857,1751050249666,-1000.0,0.00020325,2]